[Event "MČR 2022 rapid"]
[Site "Turnov, Czech Republic"]
[Date "2022.09.11"]
[Round "5.5"]
[White "Štoček, Jiří"]
[Black "Kourousis, Epameinondas"]
[Result "0-1"]
[TimeControl "2x 15 min + 5s/move"]
[WhiteElo "2521"]
[BlackElo "2359"]

1. d4 {[%clk 00:14:57]} {[%emt 00:00:18]} Nf6 {[%clk 00:15:09]} 2. c4 {[%clk
00:14:57]} {[%emt 00:00:09]} e6 {[%clk 00:15:13]} 3. Nf3 {[%clk 00:14:56]}
{[%emt 00:00:04]} b6 {[%clk 00:15:06]} {[%emt 00:00:19]} 4. Bg5 {[%clk
00:14:51]} {[%emt 00:00:09]} Bb4+ {[%clk 00:15:02]} 5. Nfd2 {[%clk 00:14:54]}
Bb7 {[%clk 00:14:34]} {[%emt 00:00:39]} 6. Nc3 {[%clk 00:14:17]} {[%emt
00:00:38]} h6 {[%clk 00:14:32]} {[%emt 00:00:12]} 7. Bh4 {[%clk 00:14:20]} Be7
{[%clk 00:14:19]} {[%emt 00:00:14]} 8. Bg3 {[%clk 00:14:19]} {[%emt 00:00:16]}
d5 {[%clk 00:13:52]} {[%emt 00:01:12]} 9. cxd5 {[%clk 00:14:09]} exd5 {[%clk
00:13:42]} 10. e3 {[%clk 00:14:04]} O-O {[%clk 00:13:37]} {[%emt 00:00:06]} 11.
Be2 {[%clk 00:13:55]} {[%emt 00:00:07]} c5 {[%clk 00:12:50]} {[%emt 00:00:53]}
12. O-O {[%clk 00:13:19]} {[%emt 00:00:42]} cxd4 {[%clk 00:11:14]} {[%emt
00:01:41]} 13. exd4 {[%clk 00:13:22]} {[%emt 00:00:06]} Nc6 {[%clk 00:11:18]}
14. Nb3 {[%clk 00:13:23]} {[%emt 00:00:05]} Ne4 {[%clk 00:11:10]} {[%emt
00:00:09]} 15. Nxe4 {[%clk 00:12:41]} {[%emt 00:00:47]} dxe4 {[%clk 00:11:14]}
16. d5 {[%clk 00:10:14]} {[%emt 00:04:22]} Nb4 {[%clk 00:09:47]} 17. d6 {[%clk
00:10:16]} Bh4 {[%clk 00:08:08]} {[%emt 00:01:30]} 18. Re1 {[%clk 00:08:29]}
{[%emt 00:01:55]} Bxg3 {[%clk 00:06:51]} {[%emt 00:01:17]} 19. hxg3 {[%clk
00:08:33]} e3 {[%clk 00:05:15]} {[%emt 00:01:44]} 20. fxe3 {[%clk 00:08:06]}
{[%emt 00:00:35]} Qg5 {[%clk 00:04:49]} {[%emt 00:00:27]} 21. Kh2 {[%clk
00:07:39]} {[%emt 00:00:35]} Rad8 {[%clk 00:04:06]} {[%emt 00:00:54]} 22. Qd2
{[%clk 00:06:39]} {[%emt 00:01:40]} Nd5 {[%clk 00:02:59]} {[%emt 00:00:31]} 23.
e4 {[%clk 00:05:32]} {[%emt 00:01:09]} Qxd2 {[%clk 00:02:10]} {[%emt 00:00:56]}
24. Nxd2 {[%clk 00:05:36]} {[%emt 00:00:06]} Nb4 {[%clk 00:02:14]} 25. e5
{[%clk 00:04:10]} {[%emt 00:01:26]} Nc2 {[%clk 00:02:18]} 26. Bc4 {[%clk
00:04:13]} {[%emt 00:00:06]} Nxa1 {[%clk 00:00:34]} {[%emt 00:01:47]} 27. Rxa1
{[%clk 00:04:09]} {[%emt 00:00:11]} Rfe8 {[%clk 00:00:38]} 28. Re1 {[%clk
00:04:03]} {[%emt 00:00:09]} Kf8 {[%clk 00:00:36]} {[%emt 00:00:06]} 29. Rf1
{[%clk 00:03:36]} {[%emt 00:00:36]} f6 {[%clk 00:00:33]} {[%emt 00:00:05]} 30.
exf6 {[%clk 00:03:31]} {[%emt 00:00:10]} Rxd6 {[%clk 00:00:33]} {[%emt
00:00:05]} 31. fxg7+ {[%clk 00:03:33]} {[%emt 00:00:05]} Kxg7 {[%clk 00:00:37]}
32. Rf7+ {[%clk 00:03:34]} {[%emt 00:00:13]} Kh8 {[%clk 00:00:30]} {[%emt
00:00:13]} 33. Bb5 {[%clk 00:03:06]} {[%emt 00:00:26]} Bc6 {[%clk 00:00:07]}
{[%emt 00:00:24]} 34. Nc4 {[%clk 00:02:35]} {[%emt 00:00:36]} Rde6 {[%clk
00:00:07]} {[%emt 00:00:09]} 35. a4 {[%clk 00:02:23]} {[%emt 00:00:13]} Bxb5
{[%clk 00:00:11]} {[%emt 00:00:05]} 36. axb5 {[%clk 00:02:27]} Rc8 {[%clk
00:00:14]} {[%emt 00:00:04]} 37. b3 {[%clk 00:02:27]} {[%emt 00:00:05]} Rc5
{[%clk 00:00:18]} 38. Rxa7 {[%clk 00:02:17]} {[%emt 00:00:11]} Rh5+ {[%clk
00:00:21]} {[%emt 00:00:14]} 39. Kg1 {[%clk 00:02:20]} Rxb5 {[%clk 00:00:22]}
40. Nd2 {[%clk 00:02:15]} {[%emt 00:00:13]} Re2 {[%clk 00:00:13]} {[%emt
00:00:06]} 41. Rd7 {[%clk 00:02:17]} {[%emt 00:00:10]} h5 {[%clk 00:00:08]}
{[%emt 00:00:06]} 42. Kh2 {[%clk 00:01:59]} {[%emt 00:00:23]} Re3 {[%clk
00:00:08]} {[%emt 00:00:05]} 43. Kh3 {[%clk 00:01:45]} {[%emt 00:00:20]} Rb4
{[%clk 00:00:13]} 44. Rd5 {[%clk 00:01:45]} {[%emt 00:00:08]} h4 {[%clk
00:00:06]} {[%emt 00:00:04]} 45. Rh5+ {[%clk 00:01:30]} {[%emt 00:00:22]} Kg8
{[%clk 00:00:10]} 46. Rg5+ {[%clk 00:01:30]} {[%emt 00:00:09]} Kf8 {[%clk
00:00:07]} {[%emt 00:00:10]} 47. Rf5+ {[%clk 00:01:30]} Ke8 {[%clk 00:00:08]}
{[%emt 00:00:05]} 48. Rf3 {[%clk 00:01:32]} {[%emt 00:00:04]} Rxf3 {[%clk
00:00:10]} {[%emt 00:00:04]} 49. gxf3 {[%clk 00:01:35]} Rd4 {[%clk 00:00:10]}
{[%emt 00:00:05]} 50. Nc4 {[%clk 00:01:33]} {[%emt 00:00:05]} b5 {[%clk
00:00:10]} {[%emt 00:00:05]} 51. Ne5 {[%clk 00:01:23]} {[%emt 00:00:15]} hxg3
{[%clk 00:00:12]} {[%emt 00:00:06]} 52. Kxg3 {[%clk 00:01:27]} Rb4 {[%clk
00:00:12]} {[%emt 00:00:08]} 53. Kf2 {[%clk 00:01:21]} {[%emt 00:00:06]} Rxb3
{[%clk 00:00:15]} 54. Ke2 {[%clk 00:01:26]} {[%emt 00:00:07]} Rc3 {[%clk
00:00:17]} {[%emt 00:00:04]} 55. Kd2 {[%clk 00:01:26]} Rc7 {[%clk 00:00:11]}
{[%emt 00:00:09]} 56. Nd3 {[%clk 00:01:22]} {[%emt 00:00:14]} Ke7 {[%clk
00:00:11]} {[%emt 00:00:04]} 57. f4 {[%clk 00:01:20]} {[%emt 00:00:06]} Ke6
{[%clk 00:00:10]} {[%emt 00:00:11]} 58. Ne5 {[%clk 00:01:09]} {[%emt 00:00:09]}
Kd5 {[%clk 00:00:08]} {[%emt 00:00:08]} 59. Nd3 {[%clk 00:00:55]} {[%emt
00:00:19]} Ke4 {[%clk 00:00:12]} 60. Nb4 {[%clk 00:00:55]} {[%emt 00:00:14]}
Rc4 {[%clk 00:00:15]} 61. Na2 {[%clk 00:00:50]} {[%emt 00:00:06]} Kxf4 {[%clk
00:00:07]} {[%emt 00:00:10]} 62. Kd3 {[%clk 00:00:54]} {[%emt 00:00:14]} Ke5
{[%clk 00:00:08]} 63. Nc3 {[%clk 00:00:56]} Rc5 {[%clk 00:00:09]} {[%emt
00:00:05]} 64. Ne4 {[%clk 00:00:59]} Rc8 {[%clk 00:00:08]} {[%emt 00:00:06]} 65.
Nc3 {[%clk 00:00:59]} {[%emt 00:00:04]} Rc5 {[%clk 00:00:09]} {[%emt 00:00:05]}
66. Ne4 {[%clk 00:00:44]} {[%emt 00:00:16]} Rd5+ {[%clk 00:00:13]} 67. Ke3
{[%clk 00:00:48]} b4 {[%clk 00:00:12]} {[%emt 00:00:10]} 68. Nf2 {[%clk
00:00:46]} {[%emt 00:00:05]} Kd6 {[%clk 00:00:08]} {[%emt 00:00:14]} 69. Nd3
{[%clk 00:00:49]} b3 {[%clk 00:00:09]} {[%emt 00:00:04]} 70. Kd4 {[%clk
00:15:05]} {[%emt 00:00:15]} Ke5+ 0-1

[Event "MČR 2022 rapid"]
[Site "Turnov, Czech Republic"]
[Date "2022.09.11"]
[Round "5.6"]
[White "Hrabuša, Matej"]
[Black "Petr, Martin"]
[Result "0-1"]
[TimeControl "2x 15 min + 5s/move"]
[WhiteElo "2274"]
[BlackElo "2506"]

1. d4 {[%clk 00:15:08]} {[%emt 00:00:05]} d5 {[%clk 00:14:57]} {[%emt
00:00:10]} 2. c4 {[%clk 00:15:12]} e6 {[%clk 00:15:01]} {[%emt 00:00:10]} 3.
Nf3 {[%clk 00:15:15]} Nf6 {[%clk 00:14:59]} {[%emt 00:00:04]} 4. g3 {[%clk
00:15:19]} dxc4 {[%clk 00:15:02]} {[%emt 00:00:08]} 5. Bg2 {[%clk 00:15:15]}
{[%emt 00:00:04]} c5 {[%clk 00:15:05]} {[%emt 00:00:04]} 6. Na3 {[%clk
00:14:55]} {[%emt 00:00:21]} Nc6 {[%clk 00:14:50]} {[%emt 00:00:19]} 7. O-O
{[%clk 00:14:44]} {[%emt 00:00:15]} cxd4 {[%clk 00:14:48]} {[%emt 00:00:08]} 8.
Nxc4 {[%clk 00:14:46]} {[%emt 00:00:06]} Bc5 {[%clk 00:13:40]} {[%emt
00:01:10]} 9. Nfe5 {[%clk 00:13:07]} {[%emt 00:01:44]} Nxe5 {[%clk 00:13:36]}
{[%emt 00:00:12]} 10. Nxe5 {[%clk 00:13:09]} O-O {[%clk 00:13:39]} 11. Qc2
{[%clk 00:10:08]} {[%emt 00:03:13]} Bd6 {[%clk 00:12:57]} {[%emt 00:00:42]} 12.
Nc4 {[%clk 00:08:46]} {[%emt 00:01:27]} e5 {[%clk 00:12:59]} {[%emt 00:00:06]}
13. e3 {[%clk 00:08:38]} {[%emt 00:00:10]} Bc7 {[%clk 00:11:25]} {[%emt
00:01:39]} 14. Rd1 {[%clk 00:08:15]} {[%emt 00:00:28]} Bg4 {[%clk 00:11:23]}
{[%emt 00:00:15]} 15. f3 {[%clk 00:07:38]} {[%emt 00:00:37]} Bh5 {[%clk
00:09:01]} {[%emt 00:02:24]} 16. exd4 {[%clk 00:07:21]} {[%emt 00:00:22]} e4
{[%clk 00:09:05]} 17. Ne5 {[%clk 00:06:17]} {[%emt 00:01:12]} Rc8 {[%clk
00:08:44]} {[%emt 00:00:23]} 18. Qb3 {[%clk 00:06:02]} {[%emt 00:00:21]} exf3
{[%clk 00:08:11]} {[%emt 00:00:38]} 19. Bxf3 {[%clk 00:05:31]} {[%emt
00:00:37]} Bxf3 {[%clk 00:07:54]} {[%emt 00:00:20]} 20. Qxf3 {[%clk 00:05:28]}
{[%emt 00:00:09]} Qd5 {[%clk 00:07:33]} {[%emt 00:00:26]} 21. Bg5 {[%clk
00:04:44]} {[%emt 00:00:53]} Qxf3 {[%clk 00:07:11]} {[%emt 00:00:23]} 22. Nxf3
{[%clk 00:04:48]} Nd5 {[%clk 00:07:13]} {[%emt 00:00:06]} 23. Rac1 {[%clk
00:04:39]} {[%emt 00:00:12]} f6 {[%clk 00:06:58]} {[%emt 00:00:24]} 24. Bd2
{[%clk 00:04:41]} Bb6 {[%clk 00:06:52]} {[%emt 00:00:11]} 25. Kg2 {[%clk
00:04:16]} {[%emt 00:00:30]} Kf7 {[%clk 00:06:38]} {[%emt 00:00:19]} 26. h3
{[%clk 00:03:42]} {[%emt 00:00:39]} Rfe8 {[%clk 00:06:34]} {[%emt 00:00:08]} 27.
Rxc8 {[%clk 00:03:43]} {[%emt 00:00:07]} Rxc8 {[%clk 00:06:38]} 28. Rc1 {[%clk
00:03:43]} {[%emt 00:00:09]} Rxc1 {[%clk 00:06:28]} {[%emt 00:00:10]} 29. Bxc1
{[%clk 00:03:47]} Nb4 {[%clk 00:06:32]} {[%emt 00:00:06]} 30. a4 {[%clk
00:03:13]} {[%emt 00:00:34]} Nd3 {[%clk 00:06:28]} {[%emt 00:00:14]} 31. Bd2
{[%clk 00:03:04]} {[%emt 00:00:14]} Nxb2 {[%clk 00:06:31]} 32. a5 {[%clk
00:03:03]} {[%emt 00:00:07]} Bc7 {[%clk 00:06:31]} {[%emt 00:00:04]} 33. Bb4
{[%clk 00:02:53]} {[%emt 00:00:14]} Nc4 {[%clk 00:06:25]} {[%emt 00:00:10]} 34.
Bc5 {[%clk 00:02:55]} a6 {[%clk 00:06:15]} {[%emt 00:00:17]} 35. d5 {[%clk
00:02:58]} Bxa5 {[%clk 00:06:11]} {[%emt 00:00:12]} 36. Kf2 {[%clk 00:02:55]}
{[%emt 00:00:07]} Bb6 {[%clk 00:06:09]} {[%emt 00:00:07]} 37. Bxb6 {[%clk
00:02:58]} {[%emt 00:00:05]} Nxb6 {[%clk 00:06:13]} 38. d6 {[%clk 00:02:59]}
{[%emt 00:00:08]} Ke6 {[%clk 00:05:57]} {[%emt 00:00:15]} 39. Nd4+ {[%clk
00:03:03]} {[%emt 00:00:09]} Ke5 {[%clk 00:05:47]} {[%emt 00:00:09]} 0-1

[Event "MČR 2022 rapid"]
[Site "Turnov, Czech Republic"]
[Date "2022.09.11"]
[Round "5.7"]
[White "Neuman, Petr"]
[Black "Rous, Daniel"]
[Result "1-0"]
[TimeControl "2x 15 min + 5s/move"]
[WhiteElo "2416"]
[BlackElo "2227"]

1. e4 {[%clk 00:15:08]} c5 {[%clk 00:15:09]} 2. Nf3 {[%clk 00:15:11]} {[%emt
00:00:05]} d6 {[%clk 00:15:13]} 3. d4 {[%clk 00:15:14]} cxd4 {[%clk 00:15:17]}
4. Nxd4 {[%clk 00:15:18]} {[%emt 00:00:11]} Nf6 {[%clk 00:15:21]} 5. f3 {[%clk
00:15:22]} a6 {[%clk 00:14:43]} {[%emt 00:00:38]} 6. c4 {[%clk 00:15:25]}
{[%emt 00:00:04]} Nc6 {[%clk 00:14:35]} {[%emt 00:00:10]} 7. Be3 {[%clk
00:15:21]} {[%emt 00:00:09]} g6 {[%clk 00:14:28]} {[%emt 00:00:12]} 8. Nc3
{[%clk 00:15:24]} Bg7 {[%clk 00:14:30]} {[%emt 00:00:06]} 9. Qd2 {[%clk
00:15:27]} {[%emt 00:00:08]} O-O {[%clk 00:14:28]} 10. Be2 {[%clk 00:15:30]}
{[%emt 00:00:04]} Nxd4 {[%clk 00:12:26]} {[%emt 00:02:08]} 11. Bxd4 {[%clk
00:15:34]} {[%emt 00:00:04]} Be6 {[%clk 00:12:29]} 12. O-O {[%clk 00:15:33]}
{[%emt 00:00:13]} Nd7 {[%clk 00:12:08]} {[%emt 00:00:14]} 13. Bxg7 {[%clk
00:15:02]} {[%emt 00:00:37]} Kxg7 {[%clk 00:12:11]} 14. f4 {[%clk 00:15:01]}
{[%emt 00:00:11]} Qb6+ {[%clk 00:11:10]} {[%emt 00:01:07]} 15. Kh1 {[%clk
00:15:05]} Rac8 {[%clk 00:10:23]} {[%emt 00:00:49]} 16. b3 {[%clk 00:15:09]}
Nf6 {[%clk 00:09:40]} {[%emt 00:00:49]} 17. f5 {[%clk 00:11:07]} {[%emt
00:04:13]} Bd7 {[%clk 00:07:34]} {[%emt 00:02:08]} 18. Rf3 {[%clk 00:11:10]}
gxf5 {[%clk 00:06:04]} {[%emt 00:01:32]} 19. Nd5 {[%clk 00:07:47]} {[%emt
00:03:31]} Nxd5 {[%clk 00:04:57]} {[%emt 00:01:10]} 20. exd5 {[%clk 00:07:34]}
{[%emt 00:00:23]} Kh8 {[%clk 00:04:28]} {[%emt 00:00:36]} 21. Qc3+ {[%clk
00:05:17]} {[%emt 00:02:15]} f6 {[%clk 00:04:30]} {[%emt 00:00:05]} 22. Bd3
{[%clk 00:05:08]} {[%emt 00:00:12]} Rg8 {[%clk 00:03:57]} {[%emt 00:00:38]} 23.
Re1 {[%clk 00:04:38]} {[%emt 00:00:39]} Rg7 {[%clk 00:03:32]} {[%emt 00:00:26]}
24. Bxf5 {[%clk 00:04:30]} {[%emt 00:00:13]} Bxf5 {[%clk 00:03:36]} 25. Rxf5
{[%clk 00:04:34]} {[%emt 00:00:06]} Qc7 {[%clk 00:03:04]} {[%emt 00:00:35]} 26.
Qd3 {[%clk 00:04:29]} {[%emt 00:00:07]} Qd7 {[%clk 00:02:41]} {[%emt 00:00:31]}
27. Rf4 {[%clk 00:04:22]} {[%emt 00:00:13]} Rcg8 {[%clk 00:02:25]} {[%emt
00:00:17]} 28. Re2 {[%clk 00:03:07]} {[%emt 00:01:20]} Rg4 {[%clk 00:01:06]}
{[%emt 00:01:26]} 29. Rf3 {[%clk 00:03:04]} {[%emt 00:00:06]} R8g7 {[%clk
00:00:44]} {[%emt 00:00:27]} 30. Rfe3 {[%clk 00:02:49]} {[%emt 00:00:24]} Kg8
{[%clk 00:00:13]} {[%emt 00:00:35]} 31. Re6 {[%clk 00:02:49]} {[%emt 00:00:10]}
R4g5 {[%clk 00:00:14]} 32. c5 {[%clk 00:01:51]} {[%emt 00:01:02]} dxc5 {[%clk
00:00:06]} {[%emt 00:00:10]} 33. d6 {[%clk 00:01:54]} {[%emt 00:00:06]} Rxg2 34.
Rxg2 {[%clk 00:01:42]} Qxe6 {[%clk 00:00:09]} 35. Rxg7+ {[%clk 00:01:37]}
{[%emt 00:00:09]} Kxg7 {[%clk 00:00:13]} 36. d7 {[%clk 00:01:40]} c4 {[%clk
00:00:06]} {[%emt 00:00:11]} 37. Qg3+ {[%clk 00:01:24]} {[%emt 00:00:21]} 1-0

[Event "MČR 2022 rapid"]
[Site "Turnov, Czech Republic"]
[Date "2022.09.11"]
[Round "6.1"]
[White "Zeman, Matyáš"]
[Black "Štoček, Jiří"]
[Result "0-1"]
[TimeControl "2x 15 min + 5s/move"]
[WhiteElo "2292"]
[BlackElo "2521"]

1. Nf3 {[%clk 00:15:05]} {[%emt 00:00:06]} d5 {[%clk 00:15:08]} {[%emt
00:00:05]} 2. g3 {[%clk 00:15:09]} Nc6 {[%clk 00:15:07]} {[%emt 00:00:17]} 3.
d4 {[%clk 00:15:08]} Bf5 {[%clk 00:15:10]} 4. Bg2 {[%clk 00:15:12]} Nb4 {[%clk
00:15:08]} {[%emt 00:00:04]} 5. Na3 {[%clk 00:15:16]} e6 {[%clk 00:15:11]}
{[%emt 00:00:05]} 6. O-O {[%clk 00:15:15]} {[%emt 00:00:05]} Be7 {[%clk
00:15:11]} {[%emt 00:00:05]} 7. c3 {[%clk 00:15:08]} {[%emt 00:00:10]} Nc6
{[%clk 00:15:12]} {[%emt 00:00:05]} 8. Qb3 {[%clk 00:14:39]} {[%emt 00:00:37]}
Rb8 {[%clk 00:15:15]} 9. Ne5 {[%clk 00:14:23]} {[%emt 00:00:18]} Nxe5 {[%clk
00:11:27]} {[%emt 00:03:54]} 10. dxe5 {[%clk 00:14:27]} b5 {[%clk 00:11:20]}
{[%emt 00:00:13]} 11. Nc2 {[%clk 00:13:02]} {[%emt 00:01:30]} c5 {[%clk
00:11:19]} {[%emt 00:00:06]} 12. Ne3 {[%clk 00:13:06]} Bg6 {[%clk 00:11:05]}
{[%emt 00:00:19]} 13. a4 {[%clk 00:12:44]} {[%emt 00:00:31]} c4 {[%clk
00:10:38]} {[%emt 00:00:30]} 14. Qd1 {[%clk 00:12:47]} b4 {[%clk 00:10:37]}
{[%emt 00:00:05]} 15. Nc2 {[%clk 00:11:43]} {[%emt 00:01:10]} bxc3 {[%clk
00:09:51]} {[%emt 00:00:51]} 16. bxc3 {[%clk 00:11:47]} Bc5 {[%clk 00:09:52]}
{[%emt 00:00:14]} 17. Nd4 {[%clk 00:11:39]} {[%emt 00:00:09]} Ne7 {[%clk
00:09:54]} 18. Be3 {[%clk 00:11:33]} {[%emt 00:00:09]} Qa5 {[%clk 00:08:32]}
{[%emt 00:01:28]} 19. Qd2 {[%clk 00:11:36]} {[%emt 00:00:11]} O-O {[%clk
00:08:28]} 20. Nb5 {[%clk 00:10:43]} {[%emt 00:01:03]} Bxe3 {[%clk 00:08:15]}
{[%emt 00:00:16]} 21. Qxe3 {[%clk 00:10:47]} a6 {[%clk 00:08:05]} {[%emt
00:00:12]} 22. Nd4 {[%clk 00:10:51]} Nf5 {[%clk 00:08:00]} {[%emt 00:00:18]} 23.
Nxf5 {[%clk 00:10:51]} Bxf5 {[%clk 00:08:03]} 24. Qd4 {[%clk 00:10:44]} {[%emt
00:00:17]} Qb6 {[%clk 00:07:32]} {[%emt 00:00:32]} 25. Qf4 {[%clk 00:10:37]}
{[%emt 00:00:12]} Bg6 {[%clk 00:07:29]} {[%emt 00:00:08]} 26. e4 {[%clk
00:10:36]} {[%emt 00:00:05]} d4 {[%clk 00:07:27]} {[%emt 00:00:08]} 27. cxd4
{[%clk 00:10:36]} {[%emt 00:00:05]} Qxd4 {[%clk 00:07:28]} {[%emt 00:00:05]} 28.
Rfd1 {[%clk 00:09:47]} {[%emt 00:00:55]} Qc5 {[%clk 00:07:18]} {[%emt
00:00:14]} 29. g4 {[%clk 00:09:30]} {[%emt 00:00:21]} f6 {[%clk 00:05:28]}
{[%emt 00:01:55]} 30. exf6 {[%clk 00:09:32]} {[%emt 00:00:09]} e5 {[%clk
00:05:31]} 31. Qd2 {[%clk 00:06:52]} {[%emt 00:02:40]} Rxf6 {[%clk 00:05:30]}
{[%emt 00:00:05]} 32. Qd5+ {[%clk 00:06:55]} {[%emt 00:00:08]} Qxd5 {[%clk
00:05:33]} 33. exd5 {[%clk 00:06:59]} c3 {[%clk 00:04:59]} {[%emt 00:00:36]} 34.
Re1 {[%clk 00:06:18]} {[%emt 00:00:50]} c2 {[%clk 00:04:54]} {[%emt 00:00:06]}
35. Be4 {[%clk 00:06:13]} {[%emt 00:00:16]} Bxe4 {[%clk 00:04:45]} {[%emt
00:00:14]} 36. Rxe4 {[%clk 00:06:17]} Rb1+ {[%clk 00:04:48]} 37. Re1 {[%clk
00:06:21]} Rxa1 {[%clk 00:04:45]} {[%emt 00:00:06]} 38. Rxa1 {[%clk 00:06:25]}
Rb6 {[%clk 00:04:48]} {[%emt 00:00:05]} 0-1

[Event "MČR 2022 rapid"]
[Site "Turnov, Czech Republic"]
[Date "2022.09.11"]
[Round "6.2"]
[White "Petr, Martin"]
[Black "Pýchová, Nela"]
[Result "1-0"]
[TimeControl "2x 15 min + 5s/move"]
[WhiteElo "2506"]
[BlackElo "2159"]

1. e4 {[%clk 00:15:08]} c5 {[%clk 00:15:07]} 2. Be2 {[%clk 00:15:11]} Nc6
{[%clk 00:15:03]} {[%emt 00:00:06]} 3. f4 {[%clk 00:15:14]} {[%emt 00:00:12]}
g6 {[%clk 00:15:03]} 4. Nf3 {[%clk 00:15:18]} Bg7 {[%clk 00:15:06]} 5. d3
{[%clk 00:15:20]} {[%emt 00:00:04]} d6 {[%clk 00:14:54]} {[%emt 00:00:11]} 6.
O-O {[%clk 00:15:22]} {[%emt 00:00:04]} e6 {[%clk 00:14:32]} {[%emt 00:00:30]}
7. c3 {[%clk 00:15:21]} {[%emt 00:00:05]} Nge7 {[%clk 00:14:30]} {[%emt
00:00:04]} 8. Be3 {[%clk 00:15:23]} {[%emt 00:00:05]} O-O {[%clk 00:14:28]}
{[%emt 00:00:07]} 9. Nbd2 {[%clk 00:15:26]} {[%emt 00:00:04]} Rb8 {[%clk
00:13:35]} {[%emt 00:00:55]} 10. d4 {[%clk 00:14:38]} {[%emt 00:00:53]} cxd4
{[%clk 00:12:57]} {[%emt 00:00:42]} 11. cxd4 {[%clk 00:14:39]} {[%emt
00:00:07]} d5 {[%clk 00:12:55]} {[%emt 00:00:08]} 12. e5 {[%clk 00:14:38]}
{[%emt 00:00:04]} Qb6 {[%clk 00:11:50]} {[%emt 00:01:09]} 13. Nb3 {[%clk
00:14:26]} {[%emt 00:00:17]} Na5 {[%clk 00:10:41]} {[%emt 00:01:16]} 14. Nxa5
{[%clk 00:12:52]} {[%emt 00:01:35]} Qxa5 {[%clk 00:10:43]} {[%emt 00:00:06]} 15.
a3 {[%clk 00:12:52]} {[%emt 00:00:05]} Bd7 {[%clk 00:10:31]} {[%emt 00:00:15]}
16. Bd2 {[%clk 00:12:05]} {[%emt 00:00:56]} Qd8 {[%clk 00:09:11]} {[%emt
00:01:21]} 17. Bb4 {[%clk 00:11:24]} {[%emt 00:00:46]} Re8 {[%clk 00:08:26]}
{[%emt 00:00:49]} 18. Bd3 {[%clk 00:11:00]} {[%emt 00:00:29]} Nf5 {[%clk
00:06:29]} {[%emt 00:02:06]} 19. Qe1 {[%clk 00:10:26]} {[%emt 00:00:35]} Bf8
{[%clk 00:02:54]} {[%emt 00:03:40]} 20. Bxf8 {[%clk 00:09:23]} {[%emt
00:01:09]} Rxf8 {[%clk 00:02:56]} {[%emt 00:00:05]} 21. g4 {[%clk 00:08:56]}
{[%emt 00:00:33]} Ng7 {[%clk 00:02:26]} {[%emt 00:00:33]} 22. Rc1 {[%clk
00:08:18]} {[%emt 00:00:40]} Rc8 {[%clk 00:00:51]} {[%emt 00:01:41]} 23. Qb4
{[%clk 00:07:51]} {[%emt 00:00:36]} Qb6 {[%clk 00:00:38]} {[%emt 00:00:15]} 24.
Qxb6 {[%clk 00:06:44]} {[%emt 00:01:12]} axb6 {[%clk 00:00:41]} {[%emt
00:00:05]} 25. Kf2 {[%clk 00:06:44]} {[%emt 00:00:04]} Rc6 {[%clk 00:00:13]}
{[%emt 00:00:33]} 26. Ke3 {[%clk 00:06:23]} {[%emt 00:00:23]} Rfc8 {[%clk
00:00:11]} {[%emt 00:00:07]} 27. Rce1 {[%clk 00:06:13]} {[%emt 00:00:14]} R6c7
{[%clk 00:00:09]} {[%emt 00:00:08]} 28. Nh4 {[%clk 00:05:52]} {[%emt 00:00:26]}
Ba4 {[%clk 00:00:07]} {[%emt 00:00:07]} 29. Kd2 {[%clk 00:04:37]} {[%emt
00:01:20]} Bc2 {[%clk 00:00:07]} {[%emt 00:00:06]} 30. Rc1 {[%clk 00:04:39]}
{[%emt 00:00:05]} Bxd3 {[%clk 00:00:10]} 31. Rxc7 {[%clk 00:04:43]} {[%emt
00:00:08]} Rxc7 {[%clk 00:00:14]} 32. Kxd3 {[%clk 00:04:47]} h5 {[%clk
00:00:14]} 33. h3 {[%clk 00:04:42]} {[%emt 00:00:09]} hxg4 {[%clk 00:00:13]}
{[%emt 00:00:06]} 34. hxg4 {[%clk 00:04:46]} Kf8 {[%clk 00:00:12]} {[%emt
00:00:12]} 35. Nf3 {[%clk 00:04:39]} {[%emt 00:00:08]} Ke7 {[%clk 00:00:13]}
{[%emt 00:00:09]} 36. Rh1 {[%clk 00:04:33]} {[%emt 00:00:06]} Rc8 {[%clk
00:00:11]} {[%emt 00:00:15]} 37. Rh7 {[%clk 00:04:10]} {[%emt 00:00:19]} Rg8
{[%clk 00:00:08]} {[%emt 00:00:07]} 38. Kc3 {[%clk 00:04:09]} {[%emt 00:00:10]}
Ne8 {[%clk 00:00:07]} {[%emt 00:00:05]} 39. Kb4 {[%clk 00:04:06]} {[%emt
00:00:10]} Nc7 {[%clk 00:00:09]} {[%emt 00:00:04]} 40. Ng5 {[%clk 00:03:45]}
{[%emt 00:00:20]} Rf8 {[%clk 00:00:13]} {[%emt 00:00:14]} 41. a4 {[%clk
00:03:43]} Ke8 {[%clk 00:00:09]} {[%emt 00:00:12]} 42. a5 {[%clk 00:03:43]}
bxa5+ {[%clk 00:00:07]} {[%emt 00:00:25]} 43. Kxa5 {[%clk 00:03:46]} Na8 {[%clk
00:00:06]} 44. b4 {[%clk 00:03:04]} {[%emt 00:00:34]} Ke7 {[%clk 00:00:08]}
{[%emt 00:00:06]} 45. b5 {[%clk 00:03:04]} {[%emt 00:00:09]} b6+ {[%clk
00:00:06]} {[%emt 00:00:04]} 46. Ka6 {[%clk 00:03:07]} Ke8 {[%clk 00:00:07]}
{[%emt 00:00:06]} 47. Kb7 {[%clk 00:03:02]} {[%emt 00:00:07]} Ke7 {[%clk
00:00:09]} {[%emt 00:00:05]} 48. Rxf7 {[%clk 00:03:01]} {[%emt 00:00:07]} Rxf7
{[%clk 00:00:12]} {[%emt 00:00:04]} 49. Nxf7 {[%emt 00:00:08]} 1-0